[Event "DFMMLV 2019"]
[Site "Braunfels"]
[Date "2019.06.22"]
[Round "4.6"]
[White "Hiebsch, Catalina"]
[Black "Heil, Marina"]
[Result "0-1"]
[ECO "C27"]
[WhiteElo "1760"]
[BlackElo "1979"]
[Annotator "NA"]
[PlyCount "92"]
[EventDate "2019.06.20"]
[EventType "team-tourn"]
[EventCountry "GER"]
[SourceTitle "playchess.com"]
[Source "ChessBase"]
[SourceQuality "1"]
[WhiteTeam "NRW"]
[BlackTeam "Wuerttemberg 1"]
[TimeControl "40/5400+30:1800+30"]

1. e4 {[%emt 0:00:00]} d6 {[%emt 0:00:00]} 2. Nc3 {[%emt 0:00:58]} e5 {[%emt 0:00:43]} 3. Bc4 {[%emt 0:01:16]} Nf6 {[%emt 0:01:03]} 4. d3 {[%emt 0:01:24]} c6 {[%emt 0:01:58]} 5. Nf3 {[%emt 0:05:21]} Be7 {[%emt 0:00:33]} 6. h3 {[%emt 0:02:52]} h6 {[%emt 0:00:23]} 7. Bd2 {[%emt 0:01:20]} Nbd7 {[%emt 0:01:06]} 8. Qe2 {[%emt 0:03:37]} a5 {[%emt 0:01:57]} 9. a4 {[%emt 0:06:28]} Qc7 {[%emt 0:08:13]} 10. d4 {[%emt 0:07:08]} Qb6 {[%emt 0:12:35]} 11. dxe5 {[%emt 0:05:41]} dxe5 {[%emt 0:00:11]} 12. b3 {[%emt 0:07:05]} Qc7 {[%emt 0:00:55]} 13. O-O {[%emt 0:05:22]} Nf8 {[%emt 0:03:24]} 14. Rad1 {[%emt 0:05:48]} g5 {[%emt 0:01:03]} 15. Nh2 {[%emt 0:03:46]} Ng6 {[%emt 0:00:23]} 16. Ng4 {[%emt 0:06:48]} Nxg4 {[%emt 0:01:54]} 17. hxg4 {[%emt 0:00:07]} Nf4 {[%emt 0:00:49]} 18. Qf3 {[%emt 0:02:23]} Rh7 {[%emt 0:13:24]} 19. g3 {[%emt 0:01:47]} Ne6 {[%emt 0:00:23]} 20. Ne2 {[%emt 0:02:39]} Bd7 {[%emt 0:01:37]} 21. Bc3 {[%emt 0:04:13]} Nc5 {[%emt 0:03:03]} 22. Nc1 {[%emt 0:05:19]} f6 {[%emt 0:11:05]} 23. Be2 {[%emt 0:03:09]} O-O-O {[%emt 0:02:40]} 24. Nd3 {[%emt 0:02:42]} Nxd3 {[%emt 0:02:27]} 25. Rxd3 {[%emt 0:00:40]} Rdh8 {[%emt 0:04:54]} 26. Rfd1 {[%emt 0:02:26]} Be6 {[%emt 0:00:45]} 27. Qe3 {[%emt 0:03:26]} b6 {[%emt 0:00:39]} 28. Bf3 {[%emt 0:01:13]} Kb7 {[%emt 0:07:00]} 29. Be1 {[%emt 0:03:26]} Qc8 {[%emt 0:04:12]} 30. Qe2 {[%emt 0:01:46]} h5 {[%emt 0:01:37]} 31. gxh5 {[%emt 0:00:55]} g4 {[%emt 0:00:13]} 32. Bg2 {[%emt 0:00:21]} Rxh5 {[%emt 0:00:29]} 33. f3 {[%emt 0:01:10]} R8h7 {[%emt 0:01:26]} 34. Bd2 {[%emt 0:01:57]} Qg8 {[%emt 0:02:14]} 35. f4 {[%emt 0:00:42]} exf4 {[%emt 0:01:22]} 36. Bxf4 {[%emt 0:00:03]} Bc5+ {[%emt 0:03:05]} 37. Be3 {[%emt 0:00:14]} Qf8 {[%emt 0:00:55]} 38. Rd8 {[%emt 0:00:44]} Qe7 {[%emt 0:03:49]} 39. Qd3 {[%emt 0:01:02]} Kc7 {[%emt 0:03:05]} 40. Kf2 {[%emt 0:00:45]} Bd7 {[%emt 0:01:31]} 41. Ra8 {[%emt 0:30:49]} Bc8 {[%emt 0:30:47]} 42. Ke2 {[%emt 0:00:00]} Bxe3 {[%emt 0:00:00]} 43. Kxe3 {[%emt 0:00:00]} Rd5 {[%emt 0:00:00]} 44. Ra7+ {[%emt 0:00:00]} Bb7 {[%emt 0:00:00]} 45. Qe2 {[%emt 0:00:00]} Qc5+ {[%emt 0:00:00]} 46. Kf4 {[%emt 0:00:00]} Qd6+ {[%emt 0:00:00]} 0-1

[Event "DFMMLV 2019"]
[Site "Braunfels"]
[Date "2019.06.22"]
[Round "4.7"]
[White "Valkova, Anzhelika"]
[Black "Hoerhold, Karola"]
[Result "1-0"]
[ECO "A80"]
[WhiteElo "1944"]
[BlackElo "1727"]
[Annotator "NA"]
[PlyCount "59"]
[EventDate "2019.06.20"]
[EventType "team-tourn"]
[EventCountry "GER"]
[SourceTitle "playchess.com"]
[Source "ChessBase"]
[SourceQuality "1"]
[WhiteTeam "Wuerttemberg 1"]
[BlackTeam "NRW"]
[TimeControl "40/5400+30:1800+30"]

1. d4 {[%emt 0:00:00]} f5 {[%emt 0:00:00]} 2. Bg5 {[%emt 0:00:00]} h6 {[%emt 0:00:04]} 3. Bh4 {[%emt 0:00:02]} g5 {[%emt 0:00:10]} 4. Bg3 {[%emt 0:00:03]} Nf6 {[%emt 0:02:21]} 5. e3 {[%emt 0:00:04]} Bg7 {[%emt 0:01:00]} 6. c4 {[%emt 0:01:42]} d6 {[%emt 0:05:18]} 7. Bd3 {[%emt 0:01:12]} O-O {[%emt 0:00:54]} 8. Nf3 {[%emt 0:00:09]} Qe8 {[%emt 0:04:21]} 9. Nc3 {[%emt 0:00:51]} e5 {[%emt 0:10:55]} 10. dxe5 {[%emt 0:00:50]} dxe5 {[%emt 0:02:09]} 11. Bxe5 {[%emt 0:01:27]} Nc6 {[%emt 0:07:08]} 12. Bxf6 {[%emt 0:01:29]} Bxf6 {[%emt 0:00:24]} 13. O-O {[%emt 0:00:15]} g4 {[%emt 0:01:54]} 14. Nd4 {[%emt 0:10:47]} Nxd4 {[%emt 0:14:33]} 15. exd4 {[%emt 0:00:04]} c6 {[%emt 0:02:36]} 16. d5 {[%emt 0:03:05]} Bd7 {[%emt 0:00:34]} 17. Qc2 {[%emt 0:12:47]} Bd4 {[%emt 0:06:44]} 18. dxc6 {[%emt 0:08:41]} bxc6 {[%emt 0:00:13]} 19. Rae1 {[%emt 0:05:51]} Qd8 {[%emt 0:00:13]} 20. Qd2 {[%emt 0:02:02]} Qf6 {[%emt 0:02:01]} 21. Qf4 {[%emt 0:08:07]} Bxc3 {[%emt 0:08:29]} 22. bxc3 {[%emt 0:00:05]} Qg7 {[%emt 0:11:02]} 23. Qd6 {[%emt 0:07:12]} Rf6 {[%emt 0:01:44]} 24. Qc5 {[%emt 0:01:34]} Kh8 {[%emt 0:04:12]} 25. Re7 {[%emt 0:03:11]} Rf7 {[%emt 0:02:13]} 26. Rfe1 {[%emt 0:01:27]} Raf8 {[%emt 0:00:11]} 27. Qd6 {[%emt 0:04:06]} Rxe7 {[%emt 0:02:07]} 28. Rxe7 {[%emt 0:00:10]} Rf7 {[%emt 0:01:14]} 29. Qxd7 {[%emt 0:02:45]} Rxe7 {[%emt 0:00:34]} 30. Qd8+ {[%emt 0:00:04] Kg8} 1-0

[Event "DFMMLV 2019"]
[Site "Braunfels"]
[Date "2019.06.22"]
[Round "4.8"]
[White "Haehnel, Andrea"]
[Black "Noppes, Marina"]
[Result "1/2-1/2"]
[ECO "A61"]
[WhiteElo "1746"]
[BlackElo "1983"]
[Annotator "NA"]
[PlyCount "41"]
[EventDate "2019.06.20"]
[EventType "team-tourn"]
[EventCountry "GER"]
[SourceTitle "playchess.com"]
[Source "ChessBase"]
[SourceQuality "1"]
[WhiteTeam "NRW"]
[BlackTeam "Wuerttemberg 1"]
[TimeControl "40/5400+30:1800+30"]

1. d4 {[%emt 0:00:00]} Nf6 {[%emt 0:04:22]} 2. c4 {[%emt 0:00:00]} e6 {[%emt 0:00:13]} 3. Nf3 {[%emt 0:03:14]} c5 {[%emt 0:00:17]} 4. d5 {[%emt 0:00:16]} exd5 {[%emt 0:00:04]} 5. cxd5 {[%emt 0:00:03]} d6 {[%emt 0:00:07]} 6. Nc3 {[%emt 0:00:10]} g6 {[%emt 0:00:14]} 7. h3 {[%emt 0:01:10]} Bg7 {[%emt 0:00:10]} 8. Bf4 {[%emt 0:00:25]} O-O {[%emt 0:03:50]} 9. e3 {[%emt 0:00:05]} a6 {[%emt 0:14:23]} 10. a4 {[%emt 0:01:37]} b6 {[%emt 0:16:08]} 11. Nd2 {[%emt 0:05:52]} Ne8 {[%emt 0:10:17]} 12. Nc4 {[%emt 0:15:36]} g5 {[%emt 0:07:30]} 13. Bh2 {[%emt 0:02:04]} f5 {[%emt 0:00:57]} 14. Be2 {[%emt 0:03:36]} Qc7 {[%emt 0:09:13]} 15. Qb3 {[%emt 0:04:26]} Nd7 {[%emt 0:00:27]} 16. O-O {[%emt 0:00:45]} Rb8 {[%emt 0:00:31]} 17. Nd2 {[%emt 0:14:27]} Ne5 {[%emt 0:02:51]} 18. f4 {[%emt 0:05:00]} gxf4 {[%emt 0:00:29]} 19. exf4 {[%emt 0:01:12]} Ng6 {[%emt 0:02:45]} 20. Rad1 {[%emt 0:02:52]} Nf6 {[%emt 0:00:34]} 21. g3 {[%emt 0:02:24]} 1/2-1/2

[Event "DFMMLV 2019"]
[Site "Braunfels"]
[Date "2019.06.22"]
[Round "4.9"]
[White "Braeutigam, Irina"]
[Black "Khrapko, Marharyta"]
[Result "0-1"]
[ECO "A22"]
[WhiteElo "1973"]
[BlackElo "2074"]
[Annotator "NA"]
[PlyCount "80"]
[EventDate "2019.06.20"]
[EventType "team-tourn"]
[EventCountry "GER"]
[SourceTitle "playchess.com"]
[Source "ChessBase"]
[SourceQuality "1"]
[WhiteTeam "Schleswig Holstein"]
[BlackTeam "Bayern 1"]
[TimeControl "40/5400+30:1800+30"]

1. c4 {[%emt 0:00:00]} e5 {[%emt 0:01:48]} 2. Nc3 {[%emt 0:00:00]} Nf6 {[%emt 0:00:39]} 3. g3 {[%emt 0:00:16]} d6 {[%emt 0:00:56]} 4. Bg2 {[%emt 0:00:06]} c6 {[%emt 0:00:47]} 5. d4 {[%emt 0:02:53]} Nbd7 {[%emt 0:01:43]} 6. e4 {[%emt 0:01:47]} Be7 {[%emt 0:00:42]} 7. Nf3 {[%emt 0:01:34]} Qc7 {[%emt 0:02:22]} 8. O-O {[%emt 0:01:11]} O-O {[%emt 0:00:10]} 9. h3 {[%emt 0:00:31]} Re8 {[%emt 0:01:33]} 10. Be3 {[%emt 0:00:44]} Bf8 {[%emt 0:09:22]} 11. d5 {[%emt 0:10:12]} g6 {[%emt 0:09:13]} 12. Qd2 {[%emt 0:07:04]} Nh5 {[%emt 0:06:29]} 13. Nh4 {[%emt 0:03:26]} Qd8 {[%emt 0:10:46]} 14. Bg5 {[%emt 0:04:29]} f6 {[%emt 0:05:31]} 15. Be3 {[%emt 0:09:32]} Qe7 {[%emt 0:05:52]} 16. Kh2 {[%emt 0:01:24]} Ng7 {[%emt 0:02:52]} 17. Rae1 {[%emt 0:04:43]} c5 {[%emt 0:08:10]} 18. b3 {[%emt 0:05:51]} Rb8 {[%emt 0:00:36]} 19. f4 {[%emt 0:06:56]} exf4 {[%emt 0:01:29]} 20. gxf4 {[%emt 0:00:19]} f5 {[%emt 0:08:29]} 21. Bf2 {[%emt 0:06:00]} fxe4 {[%emt 0:03:01]} 22. Nxe4 {[%emt 0:01:20]} Qd8 {[%emt 0:01:41]} 23. Ng5 {[%emt 0:02:56]} Nf6 {[%emt 0:02:47]} 24. Rxe8 {[%emt 0:02:29]} Qxe8 {[%emt 0:00:01]} 25. Re1 {[%emt 0:00:23]} Qd8 {[%emt 0:00:59]} 26. Ne6 {[%emt 0:00:45]} Bxe6 {[%emt 0:01:11]} 27. dxe6 {[%emt 0:00:05]} Be7 {[%emt 0:00:47]} 28. Nf3 {[%emt 0:01:22]} d5 {[%emt 0:03:30]} 29. cxd5 {[%emt 0:08:18]} Qxd5 {[%emt 0:00:02]} 30. Qxd5 {[%emt 0:10:16]} Nxd5 {[%emt 0:00:02]} 31. Bg3 {[%emt 0:00:02]} Nh5 {[%emt 0:02:38]} 32. Ne5 {[%emt 0:00:41]} Ndxf4 {[%emt 0:00:25]} 33. Nd7 {[%emt 0:00:35]} Nxg2 {[%emt 0:00:44]} 34. Kxg2 {[%emt 0:02:13]} Rc8 {[%emt 0:00:01]} 35. Bb8 {[%emt 0:03:15]} a6 {[%emt 0:00:37]} 36. Kf3 {[%emt 0:01:13]} Rc6 {[%emt 0:01:18]} 37. Ba7 {[%emt 0:00:58]} Ng7 {[%emt 0:00:35]} 38. Bxc5 {[%emt 0:01:46]} Bxc5 {[%emt 0:00:01]} 39. e7 {[%emt 0:00:04]} Ne8 {[%emt 0:00:24]} 40. Nxc5 {[%emt 0:01:38]} Rxc5 {[%emt 0:00:02]} 0-1

[Event "DFMMLV 2019"]
[Site "Braunfels"]
[Date "2019.06.22"]
[Round "4.10"]
[White "Siegl, Melina"]
[Black "Glinzner, Alva"]
[Result "0-1"]
[ECO "B40"]
[WhiteElo "2029"]
[BlackElo "1833"]
[Annotator "NA"]
[PlyCount "97"]
[EventDate "2019.06.20"]
[EventType "team-tourn"]
[EventCountry "GER"]
[SourceTitle "playchess.com"]
[Source "ChessBase"]
[SourceQuality "1"]
[WhiteTeam "Bayern 1"]
[BlackTeam "Schleswig Holstein"]
[TimeControl "40/5400+30:1800+30"]

1. e4 {[%emt 0:00:00]} c5 {[%emt 0:00:00]} 2. Nf3 {[%emt 0:00:00]} e6 {[%emt 0:00:00]} 3. d3 {[%emt 0:00:00]} Nc6 {[%emt 0:00:11]} 4. g3 {[%emt 0:00:16]} d6 {[%emt 0:00:52]} 5. Bg2 {[%emt 0:00:06]} Nf6 {[%emt 0:00:10]} 6. O-O {[%emt 0:00:26]} Be7 {[%emt 0:00:13]} 7. h3 {[%emt 0:01:46]} O-O {[%emt 0:00:46]} 8. c3 {[%emt 0:07:02]} Rb8 {[%emt 0:04:58]} 9. Nh2 {[%emt 0:07:27]} d5 {[%emt 0:05:41]} 10. Qe2 {[%emt 0:01:17]} e5 {[%emt 0:02:43]} 11. g4 {[%emt 0:03:30]} h6 {[%emt 0:01:24]} 12. Nd2 {[%emt 0:02:58]} d4 {[%emt 0:03:11]} 13. c4 {[%emt 0:04:28]} Nd7 {[%emt 0:01:36]} 14. Ndf3 {[%emt 0:03:47]} a6 {[%emt 0:04:06]} 15. Re1 {[%emt 0:02:04]} Re8 {[%emt 0:08:35]} 16. Nf1 {[%emt 0:07:36]} Bf8 {[%emt 0:02:09]} 17. Ng3 {[%emt 0:01:24]} g6 {[%emt 0:00:13]} 18. Kh1 {[%emt 0:10:49]} Bg7 {[%emt 0:01:47]} 19. Rg1 {[%emt 0:04:58]} Nf8 {[%emt 0:01:17]} 20. g5 {[%emt 0:16:26]} h5 {[%emt 0:05:56]} 21. h4 {[%emt 0:04:15]} Ne6 {[%emt 0:01:17]} 22. Nh2 {[%emt 0:01:21]} b5 {[%emt 0:04:21]} 23. b3 {[%emt 0:04:51]} Qc7 {[%emt 0:00:48]} 24. Nf5 {[%emt 0:01:53]} Bf8 {[%emt 0:16:53]} 25. Qf3 {[%emt 0:02:59]} Bb7 {[%emt 0:02:27]} 26. Nh6+ {[%emt 0:00:48]} Bxh6 {[%emt 0:01:02]} 27. gxh6 {[%emt 0:00:07]} Nf4 {[%emt 0:01:16]} 28. Bh3 {[%emt 0:04:43]} Kh7 {[%emt 0:00:41]} 29. Rg5 {[%emt 0:05:18]} Nb4 {[%emt 0:04:13]} 30. Bxf4 {[%emt 0:00:32]} exf4 {[%emt 0:00:10]} 31. Rag1 {[%emt 0:00:17]} Nxd3 {[%emt 0:01:59]} 32. Rd5 {[%emt 0:01:14]} Bxd5 {[%emt 0:02:45]} 33. exd5 {[%emt 0:00:09]} bxc4 {[%emt 0:00:25]} 34. bxc4 {[%emt 0:00:14]} Nb2 {[%emt 0:00:37]} 35. Bf1 {[%emt 0:00:24]} Kxh6 {[%emt 0:00:45]} 36. Qg2 {[%emt 0:01:53]} d3 {[%emt 0:00:50]} 37. Nf3 {[%emt 0:00:09]} Rb4 {[%emt 0:01:38]} 38. Qg5+ {[%emt 0:00:07]} Kh7 {[%emt 0:00:24]} 39. Qf6 {[%emt 0:00:14]} Qe7 {[%emt 0:01:29]} 40. Qc3 {[%emt 0:01:14]} Qe4 {[%emt 0:04:03]} 41. Bg2 {[%emt 0:01:23]} Qf5 {[%emt 0:02:10]} 42. Kh2 {[%emt 0:05:28]} Na4 {[%emt 0:01:17]} 43. Qa1 {[%emt 0:08:00]} Rb2 {[%emt 0:06:23]} 44. Ng5+ {[%emt 0:10:07]} Kg8 {[%emt 0:00:18]} 45. Qd1 {[%emt 0:00:12]} Nc3 {[%emt 0:04:00]} 46. Qf3 {[%emt 0:00:26]} Ree2 {[%emt 0:06:21]} 47. Nh3 {[%emt 0:00:26]} Rbc2 {[%emt 0:05:13]} 48. d6 {[%emt 0:07:34]} d2 {[%emt 0:00:45]} 49. Bf1 {[%emt 0:00:22]} 0-1

[Event "DFMMLV 2019"]
[Site "Braunfels"]
[Date "2019.06.22"]
[Round "4.11"]
[White "Leib, Britta"]
[Black "Stangl, Anita"]
[Result "1/2-1/2"]
[ECO "C00"]
[WhiteElo "1884"]
[BlackElo "2010"]
[Annotator "NA"]
[PlyCount "47"]
[EventDate "2019.06.20"]
[EventType "team-tourn"]
[EventCountry "GER"]
[SourceTitle "playchess.com"]
[Source "ChessBase"]
[SourceQuality "1"]
[WhiteTeam "Schleswig Holstein"]
[BlackTeam "Bayern 1"]
[TimeControl "40/5400+30:1800+30"]

1. e4 {[%emt 0:00:00]} e6 {[%emt 0:00:00]} 2. d3 d5 3. Nd2 {[%emt 0:02:30]} Nf6 {[%emt 0:01:17]} 4. g3 {[%emt 0:03:41]} c5 {[%emt 0:06:15]} 5. Bg2 {[%emt 0:03:49]} Nc6 {[%emt 0:02:13]} 6. Ngf3 {[%emt 0:03:10]} Qc7 {[%emt 0:06:57]} 7. O-O {[%emt 0:04:09]} b6 {[%emt 0:03:37]} 8. Re1 {[%emt 0:06:08]} dxe4 {[%emt 0:05:57]} 9. Nxe4 {[%emt 0:03:10]} Nxe4 {[%emt 0:03:35]} 10. dxe4 {[%emt 0:02:17]} e5 {[%emt 0:05:08]} 11. c3 {[%emt 0:03:21]} Be7 {[%emt 0:04:34]} 12. h3 {[%emt 0:05:49]} O-O {[%emt 0:02:26]} 13. Be3 {[%emt 0:04:56]} Rd8 {[%emt 0:08:55]} 14. Qa4 {[%emt 0:08:25]} Bd7 {[%emt 0:08:32]} 15. Qc2 {[%emt 0:02:55]} Be6 {[%emt 0:00:27]} 16. Rad1 {[%emt 0:05:05]} Na5 {[%emt 0:01:30]} 17. b3 {[%emt 0:03:16]} b5 {[%emt 0:05:28]} 18. Ng5 {[%emt 0:08:10]} Bd7 {[%emt 0:01:52]} 19. Rd2 {[%emt 0:12:15]} f6 {[%emt 0:04:00]} 20. Nf3 {[%emt 0:01:33]} Bc6 {[%emt 0:05:06]} 21. Red1 {[%emt 0:00:55]} Rxd2 {[%emt 0:03:26]} 22. Rxd2 {[%emt 0:00:08]} Rd8 {[%emt 0:00:08]} 23. Rxd8+ {[%emt 0:05:44]} Qxd8 {[%emt 0:02:42]} 24. Nd2 {[%emt 0:02:15]} 1/2-1/2

[Event "DFMMLV 2019"]
[Site "Braunfels"]
[Date "2019.06.22"]
[Round "4.12"]
[White "Ankerst, Milka"]
[Black "Gressmann, Hanna"]
[Result "1/2-1/2"]
[ECO "B07"]
[WhiteElo "2005"]
[BlackElo "1840"]
[Annotator "NA"]
[PlyCount "104"]
[EventDate "2019.06.20"]
[EventType "team-tourn"]
[EventCountry "GER"]
[SourceTitle "playchess.com"]
[Source "ChessBase"]
[SourceQuality "1"]
[WhiteTeam "Bayern 1"]
[BlackTeam "Schleswig Holstein"]
[TimeControl "40/5400+30:1800+30"]

1. e4 {[%emt 0:00:00]} d6 {[%emt 0:00:00]} 2. d4 {[%emt 0:00:02]} Nf6 {[%emt 0:00:00]} 3. Nc3 {[%emt 0:00:21]} Nbd7 {[%emt 0:00:12]} 4. f4 {[%emt 0:00:50]} e5 {[%emt 0:00:52]} 5. Nf3 {[%emt 0:00:28]} exd4 {[%emt 0:00:36]} 6. Nxd4 {[%emt 0:02:35]} c6 {[%emt 0:02:46]} 7. Be2 {[%emt 0:01:25]} Nc5 {[%emt 0:03:53]} 8. Bf3 {[%emt 0:00:58]} Be7 {[%emt 0:02:35]} 9. O-O {[%emt 0:03:04]} O-O {[%emt 0:01:51]} 10. Kh1 {[%emt 0:01:01]} Re8 {[%emt 0:02:23]} 11. Nb3 {[%emt 0:06:57]} Ne6 {[%emt 0:05:27]} 12. Qd3 {[%emt 0:05:08]} a5 13. a4 {[%emt 0:02:16]} Qc7 {[%emt 0:08:26]} 14. Be3 {[%emt 0:04:05]} Nf8 {[%emt 0:02:28]} 15. Qe2 {[%emt 0:10:09]} Ng6 {[%emt 0:03:30]} 16. Qf2 {[%emt 0:00:44]} Bd8 {[%emt 0:07:29]} 17. Qg3 {[%emt 0:05:16]} Nd5 {[%emt 0:13:40]} 18. Nxd5 {[%emt 0:07:30]} cxd5 {[%emt 0:01:17]} 19. Qf2 {[%emt 0:06:54]} dxe4 {[%emt 0:03:01]} 20. Bh5 {[%emt 0:00:14]} Ne7 {[%emt 0:04:45]} 21. Nd4 {[%emt 0:02:47]} Nf5 {[%emt 0:01:48]} 22. Nb5 {[%emt 0:05:40]} Qe7 {[%emt 0:02:14]} 23. Rad1 {[%emt 0:06:23]} Bd7 {[%emt 0:03:04]} 24. Be2 {[%emt 0:00:31]} Qf6 {[%emt 0:07:13]} 25. c3 {[%emt 0:00:56]} Nxe3 {[%emt 0:06:12]} 26. Qxe3 {[%emt 0:00:26]} Bxb5 27. Bxb5 {[%emt 0:00:25]} Re7 {[%emt 0:01:15]} 28. Rd5 {[%emt 0:00:45]} Bc7 {[%emt 0:01:35]} 29. Rfd1 {[%emt 0:03:06]} Qh4 {[%emt 0:02:10]} 30. h3 {[%emt 0:01:13]} Re6 {[%emt 0:01:44]} 31. Kh2 {[%emt 0:00:29]} Bb8 {[%emt 0:02:33]} 32. f5 {[%emt 0:03:54]} Ba7 {[%emt 0:05:59]} 33. Qg3 {[%emt 0:01:18]} Qxg3+ {[%emt 0:01:20]} 34. Kxg3 {[%emt 0:00:02]} Re7 {[%emt 0:00:38]} 35. Kg4 {[%emt 0:04:23]} Bc5 {[%emt 0:00:56]} 36. Kf4 {[%emt 0:00:39]} g6 {[%emt 0:01:57]} 37. g4 {[%emt 0:00:45]} h6 {[%emt 0:00:24]} 38. Kg3 {[%emt 0:03:30]} g5 {[%emt 0:00:31]} 39. Rb1 {[%emt 0:00:59]} Be3 {[%emt 0:00:19]} 40. Kg2 {[%emt 0:04:03]} Bf4 {[%emt 0:00:13]} 41. Kf2 {[%emt 0:30:38]} Rc8 {[%emt 0:32:16]} 42. Rbd1 {[%emt 0:03:21]} b6 {[%emt 0:00:00]} 43. Ke2 {[%emt 0:00:00]} Rc5 {[%emt 0:00:00]} 44. R5d4 {[%emt 0:00:00]} Rc8 {[%emt 0:00:00]} 45. Bc4 {[%emt 0:00:00]} Kg7 {[%emt 0:00:00]} 46. Bd5 {[%emt 0:00:00]} e3 {[%emt 0:00:00]} 47. Bf3 {[%emt 0:00:00]} Rc5 {[%emt 0:00:00]} 48. Rd5 {[%emt 0:00:00]} Rec7 {[%emt 0:00:00]} 49. R1d3 {[%emt 0:00:00]} Rc8 {[%emt 0:00:00]} 50. Kd1 Rc4 51. Rb5 Rxa4 52. Rxb6 Ra1+ 1/2-1/2

[Event "DFMMLV 2019"]
[Site "Braunfels"]
[Date "2019.06.22"]
[Round "4.13"]
[White "Hielscher, Ursula"]
[Black "Mehling, Katharina"]
[Result "1-0"]
[ECO "A83"]
[WhiteElo "1796"]
[BlackElo "1974"]
[Annotator "NA"]
[PlyCount "62"]
[EventDate "2019.06.20"]
[EventType "team-tourn"]
[EventCountry "GER"]
[SourceTitle "playchess.com"]
[Source "ChessBase"]
[SourceQuality "1"]
[WhiteTeam "Schleswig Holstein"]
[BlackTeam "Bayern 1"]
[TimeControl "40/5400+30:1800+30"]

1. d4 {[%emt 0:00:00]} f5 {[%emt 0:00:00]} 2. e4 {[%emt 0:00:00]} fxe4 {[%emt 0:00:00]} 3. Nc3 {[%emt 0:00:00]} Nf6 {[%emt 0:00:00]} 4. Bg5 {[%emt 0:00:07]} g6 {[%emt 0:00:12]} 5. Bxf6 {[%emt 0:00:16]} exf6 {[%emt 0:00:06]} 6. Nxe4 {[%emt 0:00:08]} d5 {[%emt 0:00:13]} 7. Nc3 {[%emt 0:00:59]} Bh6 {[%emt 0:09:10]} 8. Bd3 {[%emt 0:07:02]} Kf7 {[%emt 0:02:59]} 9. Nge2 {[%emt 0:05:20]} Nc6 {[%emt 0:00:56]} 10. O-O {[%emt 0:05:00]} Nb4 {[%emt 0:01:05]} 11. Bb5 {[%emt 0:00:27]} c6 {[%emt 0:06:33]} 12. Ba4 {[%emt 0:00:20]} Bg4 {[%emt 0:01:45]} 13. a3 {[%emt 0:02:28]} Na6 14. Qd3 {[%emt 0:06:27]} Qd7 {[%emt 0:04:39]} 15. Qg3 {[%emt 0:06:07]} Bf8 {[%emt 0:01:44]} 16. h3 Be6 {[%emt 0:04:12]} 17. Nf4 {[%emt 0:10:48]} Bd6 {[%emt 0:01:55]} 18. Qf3 {[%emt 0:01:45]} Rae8 {[%emt 0:01:49]} 19. Nfxd5 {[%emt 0:03:11]} Qd8 {[%emt 0:03:20]} 20. Ne3 {[%emt 0:06:22]} Ref8 {[%emt 0:04:02]} 21. d5 {[%emt 0:00:51]} cxd5 {[%emt 0:00:27]} 22. Nexd5 {[%emt 0:03:36]} Nc5 23. Rad1 {[%emt 0:00:35]} Nxa4 {[%emt 0:11:52]} 24. Nxa4 {[%emt 0:02:12]} Bd7 {[%emt 0:08:03]} 25. Nac3 {[%emt 0:04:53]} Be5 {[%emt 0:01:50]} 26. Rfe1 {[%emt 0:00:30]} Kg7 {[%emt 0:02:01]} 27. Nb4 {[%emt 0:11:16]} Qc8 {[%emt 0:07:01]} 28. Qe3 {[%emt 0:02:26]} Bb8 {[%emt 0:00:55]} 29. Qd4 {[%emt 0:00:30]} Rf7 {[%emt 0:00:30]} 30. Ncd5 {[%emt 0:03:13]} Re8 {[%emt 0:16:39]} 31. Nxf6 {[%emt 0:00:21]} Be5 1-0

[Event "DFMMLV 2019"]
[Site "Braunfels"]
[Date "2019.06.22"]
[Round "4.14"]
[White "Braun, Kristin"]
[Black "Franzenburg, Maria"]
[Result "1-0"]
[ECO "C00"]
[WhiteElo "1895"]
[BlackElo "1860"]
[Annotator "NA"]
[PlyCount "67"]
[EventDate "2019.06.20"]
[EventType "team-tourn"]
[EventCountry "GER"]
[SourceTitle "playchess.com"]
[Source "ChessBase"]
[SourceQuality "1"]
[WhiteTeam "Bayern 1"]
[BlackTeam "Schleswig Holstein"]
[TimeControl "40/5400+30:1800+30"]

1. e4 {[%emt 0:00:00]} e6 {[%emt 0:00:00]} 2. d3 {[%emt 0:00:17]} c5 {[%emt 0:01:08]} 3. g3 {[%emt 0:00:57]} g6 {[%emt 0:00:44]} 4. Bg2 {[%emt 0:00:24]} Bg7 {[%emt 0:00:06]} 5. Nc3 {[%emt 0:01:58]} Ne7 {[%emt 0:07:35]} 6. Be3 {[%emt 0:00:22]} d6 {[%emt 0:01:24]} 7. Qd2 {[%emt 0:00:26]} Nbc6 {[%emt 0:03:25]} 8. O-O-O {[%emt 0:02:37]} Rb8 {[%emt 0:05:04]} 9. Nf3 {[%emt 0:06:40]} b5 {[%emt 0:04:29]} 10. d4 {[%emt 0:01:52]} b4 {[%emt 0:07:03]} 11. Ne2 {[%emt 0:01:49]} Qa5 {[%emt 0:03:06]} 12. Kb1 {[%emt 0:02:06]} c4 {[%emt 0:01:57]} 13. c3 {[%emt 0:04:39]} bxc3 {[%emt 0:14:29]} 14. Qxc3 {[%emt 0:03:07]} Qa4 {[%emt 0:05:45]} 15. Nd2 {[%emt 0:13:14]} Nb4 {[%emt 0:05:20]} 16. Nc1 {[%emt 0:04:24]} Ba6 {[%emt 0:02:55]} 17. Nxc4 {[%emt 0:03:11]} d5 {[%emt 0:07:57]} 18. Nd6+ {[%emt 0:03:32]} Kd7 {[%emt 0:00:13]} 19. e5 {[%emt 0:05:43]} Nf5 {[%emt 0:01:32]} 20. Nxf5 {[%emt 0:09:28]} gxf5 {[%emt 0:02:20]} 21. a3 {[%emt 0:03:58]} Nc6 {[%emt 0:03:28]} 22. Nd3 {[%emt 0:02:40]} Bf8 {[%emt 0:00:23]} 23. Nc5+ {[%emt 0:08:38]} Bxc5 {[%emt 0:00:09]} 24. Qxc5 {[%emt 0:00:29]} Rhc8 {[%emt 0:04:17]} 25. Rc1 {[%emt 0:03:17]} Ne7 {[%emt 0:02:58]} 26. Qd6+ {[%emt 0:02:23]} Ke8 {[%emt 0:00:02]} 27. Bg5 {[%emt 0:02:35]} Rxb2+ {[%emt 0:01:50]} 28. Ka1 {[%emt 0:02:26]} Ra2+ {[%emt 0:00:49]} 29. Kxa2 {[%emt 0:00:53]} Bc4+ {[%emt 0:00:04]} 30. Ka1 {[%emt 0:00:57]} Nc6 {[%emt 0:00:58]} 31. Bf1 {[%emt 0:06:06]} Bxf1 {[%emt 0:02:00]} 32. Rhxf1 {[%emt 0:00:03]} Qxd4+ {[%emt 0:00:09]} 33. Ka2 {[%emt 0:00:20]} f6 {[%emt 0:06:48]} 34. Qxe6+ {[%emt 0:00:28] Nb8} 1-0